fUST/lending_fUST_20260217
["ID","MTS","AMOUNT","RATE_DAILY","PERIOD"]
[405725851,1771264246335,-300.0,0.00015694,2]
[405725854,1771264246345,-300.0,0.00015694,2]
[405725856,1771264246354,-2475.31107166,0.00015694,2]
[405731795,1771264896507,4170.82039511,0.00015,2]
[405731797,1771264952725,500.0,0.00013273,2]
[405731798,1771264952781,1000.0,0.00013821,2]
[405731799,1771264952840,1500.0,0.00014368,2]
[405731800,1771264952891,2000.0,0.00014916,2]
[405731807,1771264985903,500.0,0.00013699,2]
[405731808,1771264985956,1000.0,0.00014247,2]
[405731809,1771264986012,1500.0,0.00014795,2]
[405731839,1771265111739,500.0,0.00013273,2]
[405731840,1771265111771,1000.0,0.00013821,2]
[405731842,1771265111821,1500.0,0.00014368,2]
[405731843,1771265111882,2000.0,0.00014916,2]
[405731847,1771265122240,500.0,0.00013699,2]
[405731848,1771265122289,1000.0,0.00014247,2]
[405731849,1771265122340,500.0,0.00014795,2]
[405731850,1771265140127,-1241.33885566,0.00015157,2]
[405731860,1771265163633,5000.0,0.00015,2]
[405731861,1771265166004,223.83264082,0.00014701,2]
[405731862,1771265169814,402.89875348,0.00014701,2]
[405731863,1771265171008,500.0,0.00013273,2]
[405731864,1771265171065,500.0,0.00013821,2]
[405731866,1771265173768,716.26445063,0.00014701,2]
[405731867,1771265176220,1119.1632041,0.00014701,2]
[405731869,1771265179164,1611.59501391,0.00014701,2]
[405731871,1771265182177,2191.36632016,0.00014701,2]
[405731872,1771265186170,217.17623252,0.00015,2]
[405731878,1771265246082,-1343.55451226,0.00015222,2]
[405731880,1771265258660,285.04542658,0.00014701,2]
[405731881,1771265261334,325.7662018,0.00014701,2]
[405731882,1771265264093,509.00969031,0.00014701,2]
[405731883,1771265267182,732.2409801,0.00014701,2]
[405731884,1771265352098,-625.81123194,0.00015222,2]
[405731910,1771265432280,-1699.0587045,0.00015222,2]
[405731912,1771265432289,-255.38358018,0.00015299,2]
[405731914,1771265432300,-554.46460295,0.00015344,2]
[405731916,1771265432310,-507.9065894,0.00015555,2]
[405731918,1771265432320,-487.49274947,0.00015575,2]
[405731920,1771265432331,-712.50725053,0.00015575,2]
[405731922,1771265432340,-300.0,0.00015576,2]
[405731924,1771265432349,-300.0,0.00015576,2]
[405731926,1771265432359,-300.0,0.00015576,2]
[405731928,1771265432369,-300.0,0.00015576,2]
[405731930,1771265432378,-4756.850889,0.00015577,2]
[405731932,1771265432388,-497.3065607,0.00015591,2]
[405731934,1771265432397,-3437.125631,0.00015591,2]
[405731936,1771265432407,-150.0,0.00015716,2]
[405731938,1771265432416,-195.4493912,0.00015719,2]
[405731940,1771265432426,-150.0,0.00015721,2]
[405731942,1771265432435,-300.0,0.00016007,2]
[405731944,1771265432445,-300.0,0.00016007,2]
[405731946,1771265432454,-300.0,0.00016007,2]
[405731948,1771265432464,-300.0,0.00016007,2]
[405731950,1771265432473,-283.75395652,0.00016007,2]
[405731952,1771265432485,-16.24604348,0.00016007,2]
[405731954,1771265432494,-300.0,0.00016007,2]
[405731956,1771265432504,-300.0,0.00016007,2]
[405731958,1771265432513,-300.0,0.00016007,2]
[405731960,1771265432523,-300.0,0.00016007,2]
[405731962,1771265432533,-300.0,0.00016007,2]
[405731964,1771265432542,-300.0,0.00016007,2]
[405731966,1771265432552,-300.0,0.00016007,2]
[405731967,1771265432561,-300.0,0.00016007,2]
[405731969,1771265432571,-300.0,0.00016007,2]
[405731972,1771265432583,-300.0,0.00016007,2]
[405731973,1771265432592,-321.3239246,0.00016079,2]
[405731975,1771265432602,-577.1292709,0.00016079,2]
[405731977,1771265432612,-500.0,0.00016079,2]
[405731979,1771265432621,-500.0,0.00016079,2]
[405731981,1771265432631,-500.0,0.00016079,2]
[405731984,1771265432641,-583.86880523,0.00016289,2]
[405731986,1771265432650,-515.56121285,0.00016289,2]
[405731988,1771265432660,-1011.06562449,0.00016419,2]
[405731990,1771265432669,-195.83724168,0.00016437,2]
[405731992,1771265432678,-500.0,0.00016438,2]
[405731994,1771265432688,-500.0,0.00016438,2]
[405731995,1771265432699,-186.0614474,0.00016538,2]
[405731997,1771265432708,-186.0614474,0.00016541,2]
[405731999,1771265432717,-186.0614474,0.00016558,2]
[405732001,1771265432728,-186.0614474,0.00016558,2]
[405732004,1771265432738,-186.0614474,0.00016558,2]
[405732006,1771265432748,-794.68003,0.00016851,2]
[405732007,1771265432757,-420.0,0.00017037,2]
[405732009,1771265432767,-349.0,0.00017134,2]
[405732010,1771265432777,-2010.09450855,0.0001726,2]
[405732011,1771265432788,-11.83803793,0.0001726,2]
[405732012,1771265432798,-301.35262461,0.00017299,2]
[405732013,1771265432810,-186.0725867,0.0001736,2]
[405732014,1771265432819,-186.0614474,0.0001736,2]
[405732015,1771265432828,-186.0614474,0.0001736,2]
[405732016,1771265432838,-186.0614474,0.0001736,2]
[405732017,1771265432847,-177.31410319,0.0001736,2]
[405732018,1771265432867,-8.74734421,0.0001736,2]
[405732019,1771265432878,-186.0614474,0.0001736,2]
[405732020,1771265432887,-111.89295577,0.0001736,2]
[405732260,1771265438413,-500.0,0.00015589,2]
[405732262,1771265438423,-226.55041198,0.00015589,2]
[405732264,1771265438432,-500.0,0.00015589,2]
[405732266,1771265438442,-552.39863753,0.00015589,2]
[405732268,1771265438453,-500.0,0.00016438,2]
[405732270,1771265438463,-500.0,0.00016438,2]
[405732272,1771265438473,-317.11248362,0.00016438,2]
[405732275,1771265438489,-182.88751638,0.00016438,2]
[405732277,1771265438499,-500.0,0.00016438,2]
[405732279,1771265438508,-500.0,0.00016438,2]
[405732281,1771265438518,-500.0,0.00016438,2]
[405732283,1771265438527,-273.64220729,0.00016438,2]
[405732285,1771265438536,-500.0,0.00016438,2]
[405732287,1771265438546,-500.0,0.00016438,2]
[405732288,1771265438556,-500.0,0.00016438,2]
[405732290,1771265438566,-500.0,0.00016438,2]
[405732291,1771265438574,-500.0,0.00016438,2]
[405732292,1771265438584,-500.0,0.00016438,2]
[405732293,1771265438594,-500.0,0.00016438,2]
[405732294,1771265438603,-500.0,0.00016438,2]
[405732295,1771265438612,-500.0,0.00016438,2]
[405732297,1771265438622,-500.0,0.00016438,2]
[405732298,1771265438631,-500.0,0.00016438,2]
[405732299,1771265438641,-500.0,0.00016438,2]
[405732301,1771265438651,-500.0,0.00016438,2]
[405732303,1771265438660,-500.0,0.00016438,2]
[405732304,1771265438669,-500.0,0.00016438,2]
[405732305,1771265438679,-500.0,0.00016438,2]
[405732306,1771265438689,-500.0,0.00016438,2]
[405732307,1771265438699,-500.0,0.00016438,2]
[405732308,1771265438709,-74.16849163,0.0001736,2]
[405732309,1771265438719,-186.0614474,0.0001736,2]
[405732310,1771265438728,-186.0614474,0.0001736,2]
[405732311,1771265438738,-186.0614474,0.00017363,2]
[405732312,1771265438748,-186.0614474,0.00017363,2]
[405732313,1771265438757,-186.0614474,0.00017363,2]
[405732314,1771265438766,-186.0725867,0.00017363,2]
[405732315,1771265438776,-186.0614474,0.00017363,2]
[405732316,1771265438788,-186.0614474,0.00017363,2]
[405732317,1771265438798,-186.0614474,0.00017363,2]
[405732318,1771265438810,-186.0614474,0.00017379,2]
[405732319,1771265438822,-186.0614474,0.00017379,2]
[405732320,1771265438831,-186.0614474,0.0001738,2]
[405732321,1771265438842,-186.0614474,0.0001738,2]
[405732322,1771265438852,-186.0614474,0.0001738,2]
[405732323,1771265438861,-12420.6204411,0.0001745,2]
[405732324,1771265438871,-179.955716,0.0001746,2]
[405732325,1771265438880,-179.955716,0.0001746,2]
[405732326,1771265438892,-179.955716,0.0001746,2]
[405732327,1771265438901,-179.955716,0.0001746,2]
[405732328,1771265438911,-476.58,0.0001749,3]
[405732329,1771265438921,-184.062,0.00017499,2]
[405732330,1771265438930,-153.015092,0.000175,2]
[405732331,1771265438940,-151.0,0.000175,2]
[405732332,1771265438949,-179.955716,0.000175,2]
[405732333,1771265438960,-179.955716,0.000175,2]
[405732334,1771265438969,-179.955716,0.000175,2]
[405732335,1771265438978,-179.955716,0.000175,2]
[405732336,1771265438988,-13068.56600234,0.000175,2]
[405732360,1771265440664,-34999.8326811,0.000175,2]
[405732645,1771265443580,-4770.81809725,0.000175,2]
[405732673,1771265443841,-400.0,0.000175,2]
[405732926,1771265446350,-92264.00385357,0.000175,2]
[405732928,1771265446362,-796.88225697,0.000175,2]
[405732940,1771265446457,-4003.17328358,0.000175,2]
[405734657,1771265464806,1000.0,0.00013821,2]
[405734661,1771265464855,500.0,0.00013273,2]
[405734664,1771265464891,1634.25129715,0.00014368,2]
[405736220,1771265481369,250.12316265,0.00011184,2]
[405740709,1771265528263,500.0,0.00013699,2]
[405740716,1771265528320,629.69540114,0.00014247,2]
[405743736,1771266359103,-624.60845128,0.00016163,2]
[405743737,1771266359132,-61.67304044,0.00016292,2]
[405743758,1771266454083,-203.30181,0.00015619,2]
[405743759,1771266454109,-653.67097079,0.00015744,2]
[405743760,1771266454130,-208.7940589,0.00016326,2]
[405743761,1771266454153,-886.0,0.00016391,2]
[405743762,1771266454176,-172.4887375,0.00016391,2]
[405743763,1771266454199,-500.0,0.00016438,2]
[405743764,1771266454220,-236.72183377,0.00016438,2]
[405743789,1771266632429,-969.87175591,0.00016274,2]
[405743791,1771266632439,-626.45845368,0.00016404,2]
[405743793,1771266632449,-254.76797542,0.00016465,2]
[405743795,1771266632459,-152.04136632,0.00016492,2]
[405743797,1771266632468,-150.58224098,0.00016492,2]
[405743799,1771266632477,-186.0614474,0.00016541,2]
[405743801,1771266632486,-260.21676029,0.00016541,2]
[405743803,1771266632498,-345.95020061,0.00016541,2]
[405743805,1771266632507,-566.990234,0.00016796,2]
[405743807,1771266632517,-300.0,0.00016999,2]
[405743825,1771266632670,-300.0,0.00016999,2]
[405743827,1771266632680,-627.01618926,0.00016999,2]
[405743829,1771266632689,-610.04337613,0.00017,2]
[405743833,1771266632724,-1746.23643252,0.00017,2]
[405743836,1771266632735,-678.08346952,0.00017,2]
[405743988,1771266638656,-3880.52172671,0.00017,2]
[405743990,1771266638666,-1164.33349908,0.0001722,2]
[405743992,1771266638676,-2116.34096314,0.00017225,2]
[405743994,1771266638687,-151.0,0.000173,2]
[405743997,1771266638697,-36838.43989005,0.00017325,2]
[405743999,1771266638709,-644.43817866,0.00017325,2]
[405744119,1771266644044,-3052.97010194,0.00017325,2]
[405744122,1771266646573,-387096.08361503,0.00017325,2]
[405744135,1771266681694,-1847.56625778,0.00016391,2]
[405744210,1771267539135,-639.21677168,0.00016391,2]
[405744211,1771267625177,-589.6269228,0.00015841,2]
[405744212,1771267625198,-2105.7194452,0.00016391,2]
[405744214,1771267653094,-1108.98335564,0.00016391,2]
[405744215,1771267653116,-51.80505803,0.00016408,2]
[405744255,1771267831642,-186.0614474,0.00015716,2]
[405744257,1771267831652,-88.36930577,0.00016454,2]
[405744409,1771267837809,-174.29144519,0.00016454,2]
[405744411,1771267837818,-3265.0,0.000165,2]
[405744413,1771267837827,-300.0,0.00016536,2]
[405744415,1771267837837,-300.0,0.00016536,2]
[405744417,1771267837846,-300.0,0.00016536,2]
[405744419,1771267837855,-300.0,0.00016537,2]
[405744421,1771267837864,-300.0,0.00016537,2]
[405744423,1771267837873,-1200.0,0.00016537,2]
[405744426,1771267837882,-234.0,0.00016537,2]
[405744428,1771267837895,-500.0,0.00016538,2]
[405744430,1771267837904,-500.0,0.00016538,2]
[405744432,1771267837913,-500.0,0.00016538,2]
[405744434,1771267837921,-347.56625778,0.00016538,2]
[405744436,1771267837930,-606.1669609,0.00016538,2]
[405744438,1771267837940,-186.0614474,0.00016538,2]
[405744439,1771267837949,-186.0614474,0.00016538,2]
[405744441,1771267837958,-606.1669609,0.00016538,2]
[405744443,1771267837967,-606.1669609,0.00016538,2]
[405744445,1771267837976,-606.1669609,0.00016538,2]
[405744447,1771267837985,-186.0614474,0.00016541,2]
[405744449,1771267837994,-186.0614474,0.00016541,2]
[405744451,1771267838003,-606.1669609,0.00016541,2]
[405744453,1771267838012,-306.9675357,0.00016558,2]
[405744455,1771267838022,-606.1669609,0.00016559,2]
[405744457,1771267838031,-606.1669609,0.00016559,2]
[405744459,1771267838040,-883.84661721,0.00016586,2]
[405744461,1771267838049,-168.0,0.00016705,2]
[405744463,1771267838059,-168.0,0.00016749,2]
[405744465,1771267838068,-168.0,0.00016767,2]
[405744467,1771267838077,-168.0,0.00016816,2]
[405744469,1771267838087,-331.55134344,0.00017027,2]
[405744471,1771267838096,-168.0,0.00017083,2]
[405744473,1771267838105,-168.0,0.0001716,2]
[405744475,1771267838115,-257.0,0.00017183,2]
[405744477,1771267838124,-1851.79834273,0.00017225,2]
[405744479,1771267838133,-767.5,0.00017233,2]
[405744481,1771267838142,-694.445435,0.00017281,2]
[405744483,1771267838151,-3121.52891882,0.00017324,2]
[405744485,1771267838160,-32816.55634545,0.00017325,2]
[405744891,1771268108727,317.69117225,0.00013273,2]
[405744892,1771268110001,521.89783366,0.00013699,2]
[405744893,1771268110338,503.36559738,0.00013699,2]
[405744894,1771268117977,500.0,0.00013699,2]
[405744895,1771268118025,1000.0,0.00014247,2]
[405744896,1771268118074,1500.0,0.00014795,2]
[405744897,1771268121461,500.0,0.00013699,2]
[405744898,1771268121494,1028.38857604,0.00014247,2]
[405744899,1771268123130,500.0,0.00013273,2]
[405744900,1771268127792,500.0,0.00013273,2]
[405744901,1771268127850,1000.0,0.00013821,2]
[405744902,1771268127897,572.4109965,0.00014368,2]
[405744903,1771268129754,500.0,0.00013273,2]
[405744904,1771268129813,500.0,0.00013821,2]
[405744905,1771268130625,500.79097954,0.00013699,2]
[405744906,1771268131937,500.0,0.00013273,2]
[405744907,1771268132975,535.77818469,0.00013699,2]
[405744908,1771268133622,500.0,0.00013273,2]
[405744909,1771268191753,502.9594107,0.00013273,2]
[405744910,1771268197289,500.0,0.00013273,2]
[405744911,1771268197460,500.0,0.00013699,2]
[405744912,1771268197515,1123.48542514,0.00014247,2]
[405744913,1771268197912,301.1350323,0.00013699,2]
[405744914,1771268199071,517.38492542,0.00013699,2]
[405744915,1771268204027,500.0,0.00013273,2]
[405744917,1771268226508,1000.0,0.00014247,2]
[405744918,1771268226541,1500.0,0.00014795,2]
[405744919,1771268226661,500.0,0.00013699,2]
[405744931,1771268347120,500.0,0.00013699,2]
[405744932,1771268347236,517.75382645,0.00014247,2]
[405744935,1771268405051,181.14,0.00014,2]
[405744936,1771268405672,181.14,0.00014,2]
[405744937,1771268406243,181.14,0.00014,2]
[405744938,1771268406778,181.14,0.00014,2]
[405744939,1771268407358,181.14,0.00014,2]
[405744940,1771268407834,181.14,0.000141,2]
[405744941,1771268408316,181.14,0.000141,2]
[405744943,1771268409274,181.14,0.000141,2]
[405744944,1771268409747,181.14,0.000141,2]
[405744945,1771268410298,181.14,0.000141,2]
[405744946,1771268410802,181.14,0.000141,2]
[405744947,1771268411369,181.14,0.000141,2]
[405744948,1771268411931,181.14,0.000141,2]
[405744949,1771268412396,181.14,0.000141,2]
[405744950,1771268413066,181.14,0.000141,2]
[405744951,1771268414112,181.14,0.000142,2]
[405744952,1771268414735,181.14,0.000142,2]
[405744953,1771268415298,181.14,0.000142,2]
[405744954,1771268415871,181.14,0.000142,2]
[405744955,1771268416438,181.14,0.000142,2]
[405744956,1771268417001,181.14,0.000142,2]
[405744957,1771268417658,181.14,0.000142,2]
[405744958,1771268418226,181.14,0.000142,2]
[405744959,1771268418729,181.14,0.000142,2]
[405744960,1771268419396,181.14,0.000142,2]
[405744961,1771268419846,181.14,0.000143,2]
[405744962,1771268420408,181.14,0.000143,2]
[405744963,1771268420974,181.14,0.000143,2]
[405744964,1771268421537,181.14,0.000143,2]
[405744965,1771268422086,181.14,0.000143,2]
[405744966,1771268422644,181.14,0.000143,2]
[405744967,1771268423208,181.14,0.000143,2]
[405744968,1771268423778,181.14,0.000143,2]
[405744969,1771268424330,181.14,0.000143,2]
[405744970,1771268424883,181.14,0.000143,2]
[405744971,1771268425466,181.14,0.000144,2]
[405744972,1771268426028,181.14,0.000144,2]
[405744973,1771268426526,181.14,0.000144,2]
[405744974,1771268427003,181.14,0.000144,2]
[405744975,1771268427572,181.14,0.000144,2]
[405744976,1771268428168,181.14,0.000144,2]
[405744977,1771268429235,181.14,0.000144,2]
[405744978,1771268429744,181.14,0.000144,2]
[405744979,1771268430304,181.14,0.000144,2]
[405744980,1771268430966,181.14,0.000144,2]
[405744981,1771268431678,181.14,0.000145,2]
[405744982,1771268432141,181.14,0.000145,2]
[405744983,1771268432700,181.14,0.000145,2]
[405744984,1771268433250,181.14,0.000145,2]
[405744985,1771268433727,181.14,0.000145,2]
[405744986,1771268477563,5000.0,0.00015,2]
[405744987,1771268492578,500.0,0.00013699,2]
[405744988,1771268492613,1000.0,0.00014247,2]
[405744989,1771268492666,1500.0,0.00014795,2]
[405745050,1771268707611,500.0,0.00013699,2]
[405745051,1771268707665,1000.0,0.00014247,2]
[405745057,1771268750106,-1181.12664726,0.00015174,2]
[405745074,1771268825090,-296.52753594,0.00015251,2]
[405745075,1771268825113,-1182.2061619,0.00015465,2]
[405745077,1771268839120,-1603.82440206,0.00015465,2]
[405745084,1771268880476,246.42,8.238e-05,2]
[405745091,1771268965098,-156.16328616,0.00015465,2]
[405745480,1771269037960,-148.95785376,0.00015465,2]
[405745482,1771269037970,-290.59698522,0.00015511,2]
[405745484,1771269037980,-283.495117,0.00015558,2]
[405745486,1771269037989,-300.0,0.00015564,2]
[405745488,1771269038000,-1200.0,0.00015564,2]
[405745490,1771269038009,-15818.86460406,0.00015565,2]
[405745492,1771269038018,-1620.32354988,0.00015567,2]
[405745494,1771269038027,-171.63972202,0.000156,2]
[405745496,1771269038037,-217.0046664,0.000156,2]
[405745498,1771269038046,-16061.03096878,0.00015665,2]
[405745500,1771269038057,-9142.02457766,0.00015665,2]
[405745502,1771269038066,-302.18864273,0.00015667,2]
[405745505,1771269038076,-251.82386895,0.00015667,2]
[405745507,1771269038085,-362.26374491,0.00015667,2]
[405745509,1771269038095,-606.1669609,0.00015716,2]
[405745511,1771269038104,-606.1669609,0.00015716,2]
[405745513,1771269038113,-402.71681434,0.00015716,2]
[405745735,1771269040240,-203.45014656,0.00015716,2]
[405745737,1771269040250,-23473.69991696,0.00015765,2]
[405745890,1771269043485,-600.0,0.00015765,2]
[405745892,1771269045857,-560.0,0.00015765,2]
[405745893,1771269045870,-569.35562948,0.00015765,2]
[405745894,1771269045879,-655.45479922,0.00015865,2]
[405745897,1771269307367,5000.0,0.00015,2]
[405745898,1771269316257,499.99956582,0.00015,2]
[405745899,1771269324549,5000.0,0.00015,2]
[405745900,1771269701263,419.98816813,0.00014944,2]
[405745901,1771269704091,479.98647786,0.00014944,2]
[405745902,1771269706703,749.97887166,0.00014944,2]
[405745903,1771269709443,1078.88960561,0.00014944,2]
[405745906,1771269935126,-276.63789255,0.00015246,2]
[405745907,1771269935150,-604.35881086,0.00015407,2]
[405745913,1771270023168,606.1669609,0.00014915,2]
[405745917,1771270028128,-299.83229678,0.00015485,2]
[405745918,1771270028151,-17.7074157,0.00015564,2]
[405745920,1771270052075,-482.2925843,0.00015564,2]
[405745921,1771270052096,-92.43201646,0.00015715,2]
[405745922,1771270054076,-793.56798354,0.00015715,2]
[405745923,1771270054098,-300.0,0.00015715,2]
[405745924,1771270054120,-606.1669609,0.00015716,2]
[405745925,1771270054141,-606.1669609,0.00015716,2]
[405745926,1771270054163,-419.73681536,0.00015716,2]
[405745930,1771270144424,606.1669609,0.00014915,2]
[405745931,1771270174971,156.8,0.00014898,2]
[405745932,1771270174997,449.3669609,0.00014898,2]
[405745936,1771270205310,606.1669609,0.00014898,2]
[405745973,1771270232016,-300.0,0.00015548,2]
[405745975,1771270232026,-500.0,0.00015549,2]
[405745976,1771270232035,-500.0,0.00015549,2]
[405745977,1771270232045,-500.0,0.00015549,2]
[405745978,1771270232055,-627.24144736,0.00015549,2]
[405745980,1771270232064,-161.36744015,0.00015549,2]
[405745982,1771270232073,-500.0,0.00015549,2]
[405745985,1771270232083,-4261.3024239,0.0001555,2]
[405745988,1771270232094,-4473.33288735,0.0001555,2]
[405745992,1771270232105,-400.0,0.0001555,2]
[405746030,1771270238084,-1141.0,0.0001555,2]
[405746302,1771270246108,-706.6091412,0.0001555,2]
[405746303,1771270281748,-1290.6338349,0.0001555,2]
[405746321,1771270463701,186.4301455,0.00014895,2]
[405746328,1771270490058,608.0874848,0.00014898,2]
[405746334,1771270535982,606.1669609,0.00014898,2]
[405746335,1771270565115,473.9370625,0.00014898,2]
[405746337,1771270683548,172.5,8.238e-05,2]
[405746338,1771270699334,606.1669609,0.00014895,2]
[405746339,1771270756205,283.4951171,0.0001493,2]
[405746340,1771270759181,606.1669609,0.00014895,2]
[405746341,1771270789290,606.1669609,0.00014895,2]
[405746344,1771270937898,306.9675357,0.00014895,2]
[405746345,1771270939630,606.1669609,0.00014898,2]
[405746346,1771270983791,306.9675357,0.00014898,2]
[405746347,1771270997345,306.9675357,0.00014895,2]
[405746348,1771271074247,606.1669609,0.00014898,2]
[405746349,1771271119935,306.9675357,0.00014898,2]
[405746350,1771271155127,-184.072175,0.00015068,2]
[405746351,1771271155147,-482.20258985,0.00015254,2]
[405746352,1771271209704,191.96051447,0.00014925,2]
[405746353,1771271213188,219.38344511,0.00014925,2]
[405746354,1771271216356,342.44384635,0.00014925,2]
[405746355,1771271222332,658.45,0.00015,2]
[405746356,1771271225305,606.1669609,0.00014915,2]
[405746357,1771271241098,-1487.16315435,0.00015254,2]
[405746358,1771271241121,-293.83565085,0.00015315,2]
[405746359,1771271241144,-668.06229205,0.00015376,2]
[405746360,1771271241164,-379.58659942,0.0001555,2]
[405746361,1771271243228,606.1669609,0.00014895,2]
[405746363,1771271246132,-1076.46354355,0.0001555,2]
[405746364,1771271249087,-201.39288762,0.0001555,2]
[405746365,1771271284586,1500.0,0.00015,2]
[405746367,1771271419252,165.86561952,0.00014915,2]
[405746368,1771271419281,440.32316558,0.00014915,2]
[405746402,1771271438378,-4487.54357983,0.0001555,2]
[405746403,1771271438388,-288.99503899,0.00015597,2]
[405746404,1771271438397,-362.56439322,0.0001564,2]
[405746405,1771271438408,-760.83178418,0.0001564,2]
[405746406,1771271438418,-382.15107111,0.00015645,2]
[405746407,1771271438428,-373.62132649,0.00015645,2]
[405746408,1771271438438,-492.56579867,0.00015645,2]
[405746409,1771271438447,-300.0,0.00015645,2]
[405746410,1771271438457,-12196.2337474,0.00015646,2]
[405746411,1771271438466,-296.64214292,0.0001571,2]
[405746412,1771271438476,-306.9675357,0.00015716,2]
[405746413,1771271438485,-606.1669609,0.00015716,2]
[405746414,1771271438495,-606.1669609,0.00015716,2]
[405746415,1771271438506,-306.9675357,0.00015716,2]
[405746416,1771271438516,-306.9675357,0.00015716,2]
[405746417,1771271438525,-306.9675357,0.00015716,2]
[405746418,1771271438535,-306.9675357,0.00015716,2]
[405746419,1771271438545,-606.1669609,0.00015716,2]
[405746420,1771271438555,-606.1669609,0.00015716,2]
[405746421,1771271438565,-306.9675357,0.00015716,2]
[405746422,1771271438576,-306.9675357,0.00015719,2]
[405746423,1771271438585,-306.9675357,0.00015719,2]
[405746424,1771271438594,-606.1669609,0.00015719,2]
[405746425,1771271438603,-606.1669609,0.00015719,2]
[405746426,1771271438612,-306.9675357,0.00015719,2]
[405746427,1771271438622,-306.9675357,0.00015721,2]
[405746428,1771271438631,-306.9675357,0.00015721,2]
[405746429,1771271438640,-606.1669612,0.00015737,2]
[405746430,1771271438649,-152.488742,0.00015775,2]
[405746431,1771271438658,-1438.044143,0.00015775,2]
[405746432,1771271438668,-300.0,0.00015875,2]
[405746433,1771271438678,-300.0,0.00015875,2]
[405746434,1771271438687,-300.0,0.00015875,2]
[405746435,1771271438697,-300.0,0.00015875,2]
[405746436,1771271438711,-300.0,0.00015875,2]
[405746437,1771271438721,-300.0,0.00015875,2]
[405746438,1771271438731,-300.0,0.00015875,2]
[405746439,1771271438740,-300.0,0.00015875,2]
[405746440,1771271438750,-300.0,0.00015875,2]
[405746441,1771271438760,-300.0,0.00015875,2]
[405746442,1771271438769,-300.0,0.00015875,2]
[405746443,1771271438779,-227.43140809,0.00015875,2]
[405746758,1771271443565,-72.56859191,0.00015875,2]
[405746760,1771271443576,-300.0,0.00015875,2]
[405746762,1771271443585,-177.93486944,0.00015875,2]
[405746862,1771271446298,-122.06513056,0.00015875,2]
[405746863,1771271446309,-300.0,0.00015875,2]
[405746864,1771271446319,-151.0,0.00015875,2]
[405746865,1771271446328,-151.0,0.00015875,2]
[405746866,1771271446338,-151.0,0.00015875,2]
[405746867,1771271446347,-600.0,0.00015977,2]
[405746868,1771271446357,-174.61919141,0.00016092,2]
[405746869,1771271446366,-500.0,0.0001632,2]
[405746870,1771271446376,-500.0,0.0001632,2]
[405746871,1771271446513,-251.80247719,0.0001632,5]
[405746872,1771271446523,-578.704529,0.00016353,2]
[405746873,1771271446533,-1252.90400638,0.00016385,2]
[405746874,1771271446543,-118.99137172,0.00016385,2]
[405747122,1771272333094,-1132.6879704,0.00015454,2]
[405747131,1771272427095,-288.99503899,0.00015532,2]
[405747133,1771272427117,-203.30181,0.00015603,2]
[405747135,1771272427136,-1058.79146722,0.0001561,2]
[405747137,1771272448076,-1733.16493323,0.0001561,2]
[405747145,1771272574257,306.9675357,0.00014895,2]
[405747147,1771272589946,306.9675357,0.00014895,2]
[405747161,1771272632295,-1061.96317205,0.0001561,2]
[405747162,1771272632305,-89.16635704,0.00015663,2]
[405747163,1771272632317,-199.97933189,0.00015663,2]
[405747164,1771272632329,-304.09897506,0.00015716,2]
[405747165,1771272632340,-2.86856064,0.00015716,2]